bitfinex-derivatives/quotes_ETHF0:USTF0_20250804
["timestamp","ask_amount","ask_price","bid_price","bid_amount"]
[1754339038183,1.7858,3683.8,3683.7,1.4361]
[1754339041279,3.5159,3684.3,3683.7,4.2507]
[1754339041474,4.9936,3684.7,3684.6,1.7339]
[1754339041679,4.9936,3684.7,3684.6,0.4782]
[1754339043280,1.7858,3684.7,3684.6,0.691]
[1754339043484,21.15858,3685.0,3684.9,0.4782]
[1754339043686,2.32858,3685.0,3684.9,0.4782]
[1754339044584,2.32858,3685.0,3684.9,0.9306]
[1754339044981,1.87801,3684.7,3684.6,0.1942]
[1754339045291,1.7858,3684.3,3684.2,0.1942]
[1754339045982,1.7858,3684.3,3684.2,1.1434]
[1754339046281,1.7858,3684.1,3684.0,0.54291]
[1754339046482,1.7858,3684.1,3684.0,0.73711]
[1754339046683,0.95554,3683.9,3683.8,0.54293]
[1754339046987,1.7858,3683.8,3683.7,4.89415]
[1754339047385,1.7858,3683.8,3683.7,5.48465]
[1754339048588,1.7858,3683.8,3683.7,2.27685]
[1754339049488,2.32879,3683.6,3683.5,0.4782]
[1754339049788,1.25264,3683.2,3683.1,0.9306]
[1754339050392,2.32884,3683.2,3683.1,0.9306]
[1754339050583,1.7858,3683.2,3683.1,1.1434]
[1754339050779,1.7858,3683.2,3683.1,1.7339]
[1754339052795,1.7858,3683.2,3683.1,1.4361]
[1754339054187,1.7858,3683.2,3683.1,0.1942]
[1754339054394,2.32885,3683.1,3683.0,0.54305]
[1754339054793,2.32885,3683.1,3683.0,0.73725]
[1754339055291,1.7858,3683.1,3683.0,1.02125]
[1754339055496,1.7858,3683.1,3683.0,1.97915]
[1754339055696,1.7858,3683.1,3683.0,1.4361]
[1754339056397,1.3352,3683.2,3683.1,1.5397]
[1754339056598,1.3352,3683.2,3683.1,1.7339]
[1754339056896,1.25258,3683.6,3683.5,1.02119]
[1754339057090,1.25258,3683.6,3683.5,1.97909]
[1754339057602,2.32878,3683.6,3683.5,1.4361]
[1754339058093,3.2078,3684.1,3683.3,1.35755]
[1754339058395,3.2078,3684.1,3683.2,4.56538]
[1754339058396,0.54291,3684.0,3683.8,0.54293]
[1754339058698,0.7096,3684.0,3683.9,1.4361]
[1754339059301,1.7858,3684.0,3683.9,1.4361]
[1754339062694,1.7858,3683.5,3683.4,0.1942]
[1754339062888,1.7858,3683.3,3683.2,4.89422]
[1754339063395,1.7858,3683.3,3683.2,5.48472]
[1754339063892,0.7096,3683.1,3683.0,4.3512]
[1754339064093,1.7858,3683.1,3683.0,0.4782]
[1754339064398,1.7858,3683.1,3683.0,1.4361]
[1754339064896,3.2078,3683.7,3683.3,0.4782]
[1754339065095,0.7096,3683.8,3683.7,1.53175]
[1754339065299,1.3352,3683.8,3683.7,1.53175]
[1754339065699,1.3352,3683.8,3683.7,2.24585]
[1754339066196,1.87815,3683.8,3683.7,2.24585]
[1754339066497,2.30425,3683.8,3683.7,2.24585]
[1754339066898,1.7613,3683.8,3683.7,2.24585]
[1754339067604,22.0338,3684.3,3684.1,0.54288]
[1754339067605,3.2078,3684.3,3684.1,0.54288]
[1754339067901,1.20574392,3684.2,3684.1,1.57138]
[1754339068400,1.20574392,3684.2,3684.1,2.28548]
[1754339068802,1.49574392,3684.2,3684.1,2.28548]
[1754339069101,2.01144392,3684.2,3684.1,2.28548]
[1754339069302,0.72274392,3684.2,3684.1,2.28548]
[1754339069602,1.01244392,3684.2,3684.1,2.28548]
[1754339069902,1.72144392,3684.2,3684.1,2.28548]
[1754339070804,1.2887,3684.2,3684.1,2.28548]
[1754339072302,1.43161757,3684.4,3684.3,1.25627]
[1754339072498,0.72261757,3684.4,3684.3,2.28547]
[1754339072797,2.43741757,3684.4,3684.3,1.4275]
[1754339076202,1.7148,3684.4,3684.3,1.4275]
[1754339076608,1.2887,3684.4,3684.3,1.4275]
[1754339076904,1.7148,3684.4,3684.3,1.4275]
[1754339079707,1.7148,3684.4,3684.3,1.1361]
[1754339080111,1.7148,3684.4,3684.3,1.4275]
[1754339080606,1.7148,3684.4,3684.3,1.7426]
[1754339080806,1.7148,3684.4,3684.3,1.4275]
[1754339083109,1.7148,3684.4,3684.3,1.7426]
[1754339086708,3.2078,3685.1,3685.0,0.54276]
[1754339086915,3.2078,3685.1,3684.2,3.2078]
[1754339086916,1.7148,3685.0,3684.9,0.7134]
[1754339087210,0.709,3685.3,3685.2,0.5043]
[1754339087519,1.30192032,3685.4,3685.3,1.7426]
[1754339087816,0.5797,3685.4,3685.3,1.7426]
[1754339088004,0.5797,3685.4,3685.3,2.28532]
[1754339088205,2.01092032,3685.9,3685.8,1.97015]
[1754339088412,2.43702032,3685.9,3685.8,1.97015]
[1754339088914,1.7148,3685.9,3685.8,1.97015]
[1754339089116,2.43702032,3685.9,3685.8,1.97015]
[1754339090009,1.7148,3685.9,3685.8,1.97015]
[1754339090615,2.43702032,3685.9,3685.8,1.97015]
[1754339090815,1.7148,3685.9,3685.8,1.97015]
[1754339092508,1.7148,3685.9,3685.8,2.28525]
[1754339093207,0.7946,3685.9,3685.8,2.28525]
[1754339093411,1.0846,3685.9,3685.8,2.28525]
[1754339093612,1.7148,3685.9,3685.8,2.28525]
[1754339094916,1.7148,3685.9,3685.8,1.97015]
[1754339095415,0.931,3687.1,3687.0,0.54247]
[1754339095619,0.496,3686.9,3686.8,4.3596]
[1754339095811,1.1161,3686.6,3686.2,0.4651]
[1754339096016,0.6935,3686.4,3686.3,0.54256]
[1754339096219,1.1161,3686.4,3686.3,0.54256]
[1754339096419,1.4157,3686.4,3686.3,0.54256]
[1754339096814,0.7222,3686.3,3686.2,0.54258]
[1754339097117,1.4157,3686.3,3686.2,0.54258]
[1754339097319,1.7116,3686.3,3686.2,0.54258]
[1754339097918,3.8033,3686.6,3686.5,0.54254]
[1754339098118,4.9194,3686.6,3686.5,1.97674]
[1754339098321,4.1972,3686.6,3686.5,2.27354]
[1754339098520,4.9194,3686.6,3686.5,2.27354]
[1754339099624,1.7116,3686.6,3686.5,1.22924]
[1754339099825,1.7116,3686.6,3686.5,1.97674]
[1754339100020,0.4943,3686.6,3686.5,5.48134]
[1754339100215,0.2959,3686.6,3686.5,5.48134]
[1754339100420,1.7116,3686.6,3686.5,1.69434]
[1754339100621,1.7116,3686.6,3686.5,0.54254]
[1754339101127,1.7116,3686.6,3686.5,0.74934]
[1754339101424,1.5141,3686.6,3686.5,2.27354]
[1754339101817,1.7116,3686.6,3686.5,2.27354]
[1754339104318,19.33848,3687.0,3686.9,0.74928]
[1754339104319,20.5076,3687.0,3686.9,0.74928]
[1754339104523,1.0181,3686.9,3686.8,0.54249]
[1754339104724,1.7116,3686.9,3686.8,0.54249]
[1754339105122,1.7116,3686.9,3686.8,1.97669]
[1754339105326,1.289,3686.9,3686.8,2.27349]
[1754339105523,1.7116,3687.2,3687.1,1.22915]
[1754339105730,1.7116,3687.2,3687.1,2.27345]
[1754339106023,0.54251,3686.8,3686.6,0.54253]
[1754339106224,0.6935,3686.7,3686.6,0.54253]
[1754339106727,2.25413,3686.6,3686.5,0.54254]
[1754339107328,1.7116,3686.6,3686.5,0.54254]
[1754339108022,3.2078,3686.9,3686.1,5.0294]
[1754339108023,1.23607,3686.4,3686.2,0.54259]
[1754339108327,1.7116,3686.3,3686.2,1.97679]
[1754339108529,1.7116,3686.6,3686.5,1.50214]
[1754339108723,1.7116,3686.6,3686.5,1.97674]
[1754339109423,1.7116,3686.6,3686.5,1.69434]
[1754339110229,1.7116,3686.6,3686.5,1.97674]
[1754339111927,18.791,3687.0,3686.1,3.9572]
[1754339111928,0.6935,3686.2,3686.1,3.9572]
[1754339112230,1.7116,3686.2,3686.1,3.7504]
[1754339112631,1.7116,3686.2,3686.1,4.4371]
[1754339112836,1.7116,3686.2,3686.1,4.9022]
[1754339113530,0.5426,3686.1,3686.0,0.54261]
[1754339113728,1.7116,3686.1,3686.0,0.54261]
[1754339114025,1.7116,3686.1,3686.0,0.74941]
[1754339114231,1.7116,3686.1,3686.0,2.27361]
[1754339114431,3.2078,3686.5,3686.4,2.27356]
[1754339114631,1.1161,3686.7,3686.6,1.97673]
[1754339115031,1.7116,3686.7,3686.6,2.27353]
[1754339116824,1.7116,3686.7,3686.6,1.69433]
[1754339117136,1.7116,3686.7,3686.6,1.03703]
[1754339117432,1.7116,3686.7,3686.6,1.50213]
[1754339117834,1.7116,3686.7,3686.6,1.69433]
[1754339118034,1.7116,3686.7,3686.6,1.97673]
[1754339118237,1.7116,3686.7,3686.6,2.27353]
[1754339119834,1.7116,3686.7,3686.6,1.97673]
[1754339124135,1.7116,3686.7,3686.6,1.03703]
[1754339124431,1.7116,3686.7,3686.6,0.54253]
[1754339125136,20.14417,3687.1,3686.2,0.54258]
[1754339125137,1.7116,3686.5,3686.2,0.54258]
[1754339125441,1.7116,3686.3,3686.2,1.69438]
[1754339125635,1.7116,3686.3,3686.2,0.54258]
[1754339126037,1.7116,3686.3,3686.2,0.73988]
[1754339126343,1.7116,3686.3,3686.2,1.67518]
[1754339127237,1.7116,3686.3,3686.2,1.95818]
[1754339127437,1.7116,3686.3,3686.2,2.23898]
[1754339128139,2.28851,3686.8,3686.7,1.6751]
[1754339128332,1.746,3686.8,3686.7,1.9581]
[1754339130043,1.746,3686.8,3686.7,2.2389]
[1754339130745,2.2885,3686.8,3686.6,0.54252]
[1754339131045,1.24455,3686.5,3686.4,0.54255]
[1754339131239,1.24455,3686.5,3686.1,3.2078]
[1754339131240,1.746,3686.4,3686.3,1.67516]
[1754339131437,1.746,3686.4,3686.3,1.95816]
[1754339131637,1.746,3686.4,3686.3,2.23896]
[1754339131937,1.746,3686.4,3686.3,1.67516]
[1754339132137,1.746,3686.4,3686.3,1.95816]
[1754339132943,1.746,3686.4,3686.3,1.67516]
[1754339133648,1.746,3686.4,3686.3,1.95816]
[1754339134248,0.54254,3686.6,3686.5,0.54254]
[1754339134446,2.28854,3686.6,3686.5,1.67514]
[1754339134642,0.93544,3686.6,3686.5,1.21304]
[1754339134844,2.28854,3686.6,3686.5,2.23894]
[1754339135043,1.746,3686.6,3686.5,2.23894]
[1754339138052,1.746,3686.6,3686.5,0.4794]
[1754339138350,1.746,3686.6,3686.5,1.95814]
[1754339138948,1.746,3686.6,3686.5,2.23894]
[1754339140049,1.746,3686.6,3686.5,1.95814]
[1754339143262,1.746,3686.6,3686.5,1.67514]
[1754339143464,1.746,3686.6,3686.5,1.02194]
[1754339144359,1.746,3686.6,3686.5,1.67514]
[1754339146567,1.746,3686.6,3686.5,1.1326]
[1754339146866,1.746,3686.2,3686.1,4.4098]
[1754339147066,1.746,3686.2,3686.1,4.6919]
[1754339147261,1.746,3686.2,3686.1,4.883]
[1754339147463,1.746,3686.2,3686.1,5.166]
[1754339147660,3.519,3687.8,3687.3,0.54243]
[1754339147861,3.519,3687.8,3687.7,1.237]
[1754339147862,1.1495,3687.8,3687.7,1.237]
[1754339148057,1.1495,3687.8,3687.6,0.54237]
[1754339148058,1.87086814,3687.8,3687.6,0.54237]
[1754339148261,1.87086814,3687.7,3687.6,0.54237]
[1754339148467,2.18206814,3687.7,3687.6,0.54237]
[1754339149766,2.46736814,3687.7,3687.6,0.54237]
[1754339149960,2.46736814,3687.7,3687.6,0.73347]
[1754339150363,2.46736814,3687.7,3687.6,1.03517]
[1754339150364,1.746,3687.7,3687.6,1.03517]
[1754339150565,2.46736814,3687.7,3687.6,1.03517]
[1754339150757,2.46736814,3687.7,3687.6,1.77937]
[1754339150965,1.746,3687.7,3687.6,1.77937]
[1754339151261,2.46736814,3687.7,3687.6,1.77937]
[1754339151458,2.46736814,3687.7,3687.6,0.1911]
[1754339151662,1.2985,3687.2,3687.1,4.24305]
[1754339151870,1.746,3687.2,3687.1,4.24305]
[1754339152180,1.746,3687.2,3687.1,4.98725]
[1754339154664,0.3112,3687.2,3687.1,4.98725]
[1754339155969,0.5008,3687.2,3687.1,4.98725]
[1754339156164,1.0074,3687.2,3687.1,4.98725]
[1754339156366,1.7121,3687.2,3687.1,4.98725]
[1754339158069,1.43,3687.2,3687.1,4.98725]
[1754339158273,0.5008,3687.2,3687.1,4.98725]
[1754339160370,1.7099,3687.2,3687.1,4.98725]
[1754339160566,0.8077,3687.2,3686.5,3.2078]
[1754339160769,0.8077,3687.2,3686.1,1.35649]
[1754339160770,1.95683,3685.9,3685.8,2.40653186]
[1754339160966,1.7246,3685.6,3685.5,2.94922186]
[1754339161173,1.7246,3685.6,3685.5,0.73519]
[1754339161375,1.25218,3685.6,3685.4,2.40653186]
[1754339161577,1.7246,3685.5,3685.4,2.40653186]
[1754339161868,0.512,3685.5,3685.4,3.64273186]
[1754339162176,0.512,3685.5,3685.4,1.2362]
[1754339162470,0.8224,3685.5,3685.4,1.2362]
[1754339163977,1.7246,3685.5,3685.4,3.65328098]
[1754339164278,1.7246,3685.5,3685.4,3.20298098]
[1754339164777,1.7246,3685.5,3685.4,2.60958098]
[1754339165479,1.7246,3685.5,3685.4,3.34488098]
[1754339165776,1.7246,3685.5,3685.4,3.65328098]
[1754339169681,1.7246,3685.5,3685.4,1.2362]
[1754339169881,19.9081,3686.0,3685.9,0.5009]
[1754339170076,20.1902,3686.0,3685.9,1.77883]
[1754339170476,20.5006,3686.0,3685.9,1.77883]
[1754339171083,1.7246,3686.0,3685.9,1.77883]
[1754339171880,1.7246,3686.0,3685.9,1.32853]
[1754339174076,1.7246,3686.0,3685.9,0.73513]
[1754339174680,1.7246,3686.0,3685.9,1.47043]
[1754339174981,1.7246,3686.0,3685.9,1.77883]
[1754339177574,1.7246,3686.0,3685.9,0.73513]
[1754339178378,1.53427,3685.7,3685.2,3.9431]
[1754339178685,1.7246,3685.5,3685.4,1.4705]
[1754339179185,1.7246,3685.5,3685.4,1.7789]
[1754339179780,1.0199,3685.5,3685.4,1.7789]
[1754339179981,0.5427,3685.4,3685.3,0.54271]
[1754339180178,2.2673,3685.4,3685.3,0.54271]
[1754339181284,1.2522,3685.4,3685.2,0.54273]
[1754339181487,1.7246,3685.3,3685.2,0.54273]
[1754339181681,1.4177,3685.3,3684.8,3.2078]
[1754339181881,0.1975,3685.0,3684.9,1.2362]
[1754339182081,1.7246,3685.0,3684.9,0.73528]
[1754339182482,1.25228,3684.9,3684.8,3.2078]
[1754339182679,1.35684,3685.3,3684.5,0.54283]
[1754339182680,0.7095,3684.6,3684.5,0.54283]
[1754339182882,0.4026,3685.6,3685.5,0.1925]
[1754339183087,1.4142,3685.6,3685.5,1.2362]
[1754339183380,18.776,3685.7,3685.2,0.54272]
[1754339183381,1.05472,3685.3,3685.2,0.54272]
[1754339183577,20.13268,3685.7,3685.0,0.54275]
[1754339183578,0.54275,3685.1,3685.0,0.54275]
[1754339183783,1.25225,3685.1,3685.0,0.54275]
[1754339183983,1.7246,3685.1,3685.0,1.32865]
[1754339184186,0.3104,3685.1,3685.0,1.77895]
[1754339184489,0.8224,3685.5,3685.4,1.2362]
[1754339184891,1.4425,3685.5,3685.4,1.2362]
[1754339185084,1.7246,3685.5,3685.4,1.7789]
[1754339186080,0.3104,3685.5,3685.4,1.7789]
[1754339187389,0.5114,3685.5,3685.4,1.7789]
[1754339188589,0.7985,3685.5,3685.4,1.7789]
[1754339191492,0.3104,3685.5,3685.4,1.7789]
[1754339191987,0.5114,3685.5,3685.4,1.7789]
[1754339193091,0.7985,3685.5,3685.4,1.7789]
[1754339193399,1.4282,3685.5,3685.4,1.7789]
[1754339193596,1.7238,3685.5,3685.4,1.7789]
[1754339195095,0.7985,3685.5,3685.4,1.7789]
[1754339195296,0.3104,3685.5,3685.4,1.7789]
[1754339195798,0.5114,3685.5,3685.4,1.7789]
[1754339195995,1.2348,3685.5,3685.4,1.7789]
[1754339196300,1.7238,3685.5,3685.4,4.9867]
[1754339197396,0.54264,3685.9,3685.4,4.9867]
[1754339197397,0.54263,3686.0,3685.5,1.35673]
[1754339197690,2.25683,3686.0,3685.6,0.7304]
[1754339197895,2.25683,3686.0,3685.9,0.54262]
[1754339198496,21.03083,3686.0,3685.9,0.54262]
[1754339199490,2.25686,3685.9,3685.8,0.54264]
[1754339199685,2.25686,3685.9,3685.5,1.35673]
[1754339199686,3.2078,3686.1,3685.9,0.54262]
[1754339199897,1.03067,3686.4,3686.3,0.4866]
[1754339200095,1.2241,3686.1,3686.0,1.46431]
[1754339200290,0.6815,3685.5,3685.4,4.9827]
[1754339200596,2.25696,3685.0,3684.6,5.62470183]
[1754339200794,1.7142,3684.6,3684.5,2.41690183]
[1754339201091,1.7142,3684.6,3684.2,3.5031]
[1754339201092,2.25704,3684.5,3684.3,0.54286]
[1754339201294,3.2078,3684.9,3683.9,0.4351]
[1754339201295,0.54288,3684.2,3684.1,2.95979183]
[1754339201495,2.25708,3684.2,3684.0,2.41690183]
[1754339201689,1.7142,3684.1,3684.0,2.41690183]
[1754339201986,1.96151,3684.0,3683.9,2.41690183]
[1754339202190,2.25711,3684.0,3683.9,2.41690183]
[1754339202386,1.7142,3683.9,3683.8,2.41690183]
[1754339203187,0.54291,3684.0,3683.3,0.7304]
[1754339203188,2.25714,3683.8,3683.7,2.41690183]
[1754339203390,2.25714,3683.8,3683.5,2.41690183]
[1754339203391,2.25717,3683.6,3683.5,2.41690183]
[1754339203796,1.2245,3683.4,3683.3,2.41690183]
[1754339203993,2.2572,3683.4,3683.3,2.41690183]
[1754339204298,1.7142,3683.4,3683.3,2.41690183]
[1754339205198,1.7142,3683.4,3683.2,2.95991183]
[1754339205399,1.5208,3683.3,3683.2,3.15121183]
[1754339205600,1.7142,3683.3,3683.2,3.15121183]
[1754339206003,1.7142,3683.3,3683.2,1.02961]
[1754339206202,1.7142,3683.3,3683.2,0.73431]
[1754339206502,1.7142,3683.3,3683.2,0.54301]
[1754339206697,1.0327,3683.2,3682.9,3.5031]
[1754339206903,1.7142,3682.7,3682.6,1.77532]
[1754339207798,0.9823,3682.7,3682.6,1.77532]
[1754339207999,0.3008,3682.7,3682.6,1.77532]
[1754339209007,0.201,3683.1,3683.0,1.04486]
[1754339209208,0.6815,3683.1,3683.0,1.77526]
[1754339209398,1.4134,3683.1,3683.0,1.77526]
[1754339209601,1.7142,3683.1,3683.0,1.77526]
[1754339211600,1.7142,3683.1,3683.0,0.85356]
[1754339211798,0.9823,3683.3,3683.2,1.77523]
[1754339211997,0.3008,3683.3,3683.2,1.77523]
[1754339212598,0.5018,3683.3,3683.2,1.77523]
[1754339213307,1.7142,3683.3,3683.2,1.77523]
[1754339214309,1.4186,3683.3,3683.2,1.77523]
[1754339215611,19.9201,3684.1,3684.0,1.78691]
[1754339215798,1.1391,3684.1,3684.0,1.78691]
[1754339216000,1.7197,3684.1,3684.0,1.34581]
[1754339216408,1.7197,3684.1,3684.0,1.78691]
[1754339217207,3.6942,3684.3,3684.2,1.78838]
[1754339217506,0.9826,3684.3,3684.2,1.78838]
[1754339217902,0.4864,3684.3,3684.2,1.78838]
[1754339218203,0.2905,3684.3,3684.2,1.78838]
[1754339219404,0.4864,3684.3,3684.2,1.78838]
[1754339219603,0.9826,3684.3,3684.2,1.78838]
[1754339219804,1.7303,3684.3,3684.2,1.78838]
[1754339220512,1.4402,3684.3,3684.2,1.78838]
[1754339220710,0.7907,3684.3,3684.2,1.78838]
[1754339221008,0.4864,3684.3,3684.2,1.78838]
[1754339221411,0.7907,3684.3,3684.2,1.78838]
[1754339221612,1.7303,3684.3,3684.2,1.78838]
[1754339223206,1.7303,3684.3,3684.2,0.74678]
[1754339223408,1.7303,3684.3,3684.2,0.54288]
[1754339225807,1.4402,3684.3,3684.2,1.78838]
[1754339226201,1.7303,3684.3,3684.2,1.78838]
[1754339227810,1.7303,3684.3,3684.2,0.54288]
[1754339229511,0.6921,3684.1,3684.0,0.5429]
[1754339229814,2.27321,3684.0,3683.9,3.2078]
[1754339230105,1.35716,3684.4,3683.6,0.54296]
[1754339230106,0.54296,3683.7,3683.6,0.54296]
[1754339230305,2.27326,3683.7,3683.6,0.54296]
[1754339231214,1.7303,3683.7,3683.6,0.54296]
[1754339231412,1.7303,3683.7,3683.6,0.74686]
[1754339231612,1.7303,3683.7,3683.6,1.04796]
[1754339232414,0.73887,3683.6,3683.5,0.54297]
[1754339232707,2.27327,3683.6,3683.5,0.54297]
[1754339233011,1.7303,3683.6,3683.5,1.04797]
[1754339233212,1.7303,3683.6,3683.5,1.48907]
[1754339233409,1.7303,3683.6,3683.5,1.78847]
[1754339233813,0.93078,3683.5,3683.4,0.54299]
[1754339234011,1.98278,3683.5,3683.4,0.54299]
[1754339234311,1.7303,3683.2,3683.1,3.4117]
[1754339234713,1.7303,3683.2,3683.1,3.95474]
[1754339234903,1.7303,3683.2,3683.1,4.69694]
[1754339235108,1.7303,3683.2,3683.1,4.99634]
[1754339235517,1.7303,3683.2,3683.1,3.75084]
[1754339235716,1.7303,3683.2,3683.1,4.99634]
[1754339236015,1.7303,3683.2,3683.1,3.75084]
[1754339236211,1.7303,3683.2,3683.1,4.25584]
[1754339236409,1.7303,3683.2,3683.1,4.99634]
[1754339238417,0.7907,3683.2,3683.1,4.99634]
[1754339238613,3.75076,3683.7,3683.6,0.54297]
[1754339238818,3.75076,3683.7,3683.6,1.78847]
[1754339238819,2.27326,3683.7,3683.6,1.78847]
[1754339239018,1.7303,3683.7,3683.6,1.78847]
[1754339239518,0.7907,3683.7,3683.6,1.78847]
[1754339239912,0.2905,3683.7,3683.6,1.78847]
[1754339240207,0.54289,3684.2,3683.6,0.7422]
[1754339240405,1.7303,3684.1,3684.0,1.4873]
[1754339241109,1.7303,3684.1,3684.0,1.7884]
[1754339241311,0.6921,3684.0,3683.5,3.2078]
[1754339241621,1.4398,3683.6,3683.5,3.75078]
[1754339241813,1.7303,3683.6,3683.5,3.75078]
[1754339242707,1.7303,3683.6,3683.2,0.7422]
[1754339242912,1.35732,3683.9,3683.4,0.2039]
[1754339242913,0.4962,3683.5,3683.4,0.2039]
[1754339243121,0.6921,3683.5,3683.4,0.2039]
[1754339243420,1.7303,3683.5,3683.4,0.2039]
[1754339243918,2.27329,3683.5,3683.4,0.505]
[1754339244521,1.7303,3683.2,3683.1,0.74693]
[1754339244819,1.7303,3683.2,3683.1,1.04803]
[1754339245020,1.4402,3683.2,3683.1,1.48743]
[1754339245222,1.7303,3683.2,3683.1,1.78853]
[1754339245616,1.7303,3683.2,3683.1,4.99633]
[1754339246413,0.84578,3683.6,3683.5,0.54298]
[1754339246611,1.35717,3684.4,3683.5,4.1605]
[1754339246612,0.294,3684.0,3683.5,4.1605]
[1754339246919,3.2078,3684.4,3683.5,4.1605]
[1754339246920,3.4114,3684.4,3684.2,0.54288]
[1754339247117,1.4568,3684.3,3684.2,1.79828]
[1754339247420,1.7508,3684.3,3684.2,1.79828]
[1754339249317,0.54291,3684.1,3684.0,0.199]
[1754339249621,0.7099,3684.1,3684.0,0.5017]
[1754339249821,0.7099,3684.1,3684.0,1.2554]
[1754339250118,1.7508,3684.1,3684.0,1.7983]
[1754339250418,1.0039,3684.1,3684.0,1.7983]
[1754339250620,1.7508,3684.1,3684.0,1.7983]
[1754339251017,1.7508,3684.1,3683.9,3.75072]
[1754339251221,0.7099,3684.1,3684.0,0.9527]
[1754339251714,1.3067,3684.1,3684.0,1.2554]
[1754339251915,1.7508,3684.1,3684.0,1.2554]
[1754339252717,0.294,3684.1,3684.0,1.2554]
[1754339255119,1.20032461,3684.7,3684.6,1.2554]
[1754339255319,1.94922461,3684.7,3684.6,1.2554]
[1754339255623,2.45352461,3684.7,3684.6,0.199]
[1754339255926,2.29362,3684.7,3684.6,0.199]
[1754339256125,2.45353499,3684.7,3684.6,0.199]
[1754339257126,0.294,3684.6,3684.5,1.03863]
[1754339257322,0.15991499,3685.0,3684.9,1.03858]
[1754339257821,0.15991499,3685.0,3684.9,1.79818]
[1754339258018,0.45391499,3685.0,3684.9,1.79818]
[1754339259329,0.15991499,3685.0,3684.9,1.79818]
[1754339260026,0.65751499,3685.0,3684.9,1.79818]
[1754339260923,0.45391499,3685.0,3684.9,1.79818]
[1754339261429,0.294,3685.0,3684.9,1.79818]
[1754339261729,0.4976,3685.0,3684.9,1.79818]
[1754339261929,0.65751499,3685.0,3684.9,1.79818]
[1754339262123,0.294,3685.0,3684.9,1.79818]
[1754339262530,0.45391499,3685.0,3684.9,1.79818]
[1754339262728,0.294,3685.0,3684.9,1.79818]
[1754339263031,0.294,3685.1,3685.0,1.2554]
[1754339263825,0.4976,3685.1,3685.0,1.2554]
[1754339264628,0.294,3685.1,3685.0,1.2554]
[1754339264824,0.4976,3685.1,3685.0,1.2554]
[1754339265524,1.0039,3685.1,3685.0,0.7985]
[1754339265833,1.0039,3685.1,3684.9,0.54278]
[1754339265834,1.7508,3685.0,3684.9,0.54278]
[1754339266021,1.0127,3684.9,3684.8,3.75058]
[1754339266226,1.7508,3684.9,3684.8,3.75058]
[1754339266530,1.7508,3684.9,3684.8,3.94958]
[1754339267028,1.7508,3684.9,3684.8,3.75058]
[1754339267628,0.5063,3684.4,3684.3,4.50436]
[1754339267831,1.7508,3684.4,3684.3,3.75066]
[1754339268032,1.7508,3684.4,3684.3,3.2078]
[1754339268225,1.448,3684.4,3684.3,2.8964]
[1754339268430,21.9688,3684.9,3683.7,2.95985183]
[1754339268431,1.7508,3683.9,3683.7,2.95985183]
[1754339268627,3.2078,3684.5,3683.7,2.41690183]
[1754339268628,1.7508,3683.8,3683.7,2.41690183]
[1754339270029,2.29375,3683.7,3683.6,2.41690183]
[1754339270419,2.29375,3683.7,3683.5,0.54297]
[1754339270621,1.7508,3683.6,3683.5,0.54297]
[1754339271127,1.7508,3683.6,3683.5,0.74197]
[1754339271526,1.7508,3683.6,3683.5,2.00287]
[1754339273431,1.7508,3683.6,3683.5,0.74197]
[1754339274635,1.7508,3683.6,3683.5,2.00287]
[1754339276928,1.7508,3683.6,3683.5,2.29747]
[1754339277336,1.7508,3683.6,3683.5,2.00287]
[1754339277938,1.02778,3683.5,3683.4,2.95635537]
[1754339278137,1.7078,3683.5,3683.4,2.95635537]
[1754339278330,1.7078,3683.5,3683.4,0.54299]
[1754339278931,1.7078,3683.5,3683.4,1.01709]
[1754339280137,1.7078,3683.5,3683.4,1.48609]
[1754339280335,1.7078,3683.5,3683.4,1.92089]
[1754339281230,3.2078,3684.1,3683.8,1.48604]
[1754339281429,0.9723,3684.2,3684.1,1.19988]
[1754339281729,0.9723,3684.2,3684.1,1.49448]
[1754339281730,1.7078,3684.2,3684.1,1.49448]
[1754339282032,0.494,3684.3,3684.2,1.19987]
[1754339282336,1.7078,3684.3,3684.2,1.63467]
[1754339282538,0.6845,3683.9,3683.8,0.657]
[1754339282730,1.7078,3683.9,3683.8,0.657]
[1754339282935,1.7078,3683.9,3683.8,1.92084]
[1754339284537,1.7078,3683.9,3683.8,0.91784]
[1754339284941,1.7078,3683.9,3683.8,1.92084]
[1754339285537,0.9723,3684.3,3684.2,1.19988]
[1754339285734,1.7078,3684.3,3684.2,1.92078]
[1754339287036,1.7078,3684.3,3684.2,1.3779]
[1754339289345,1.7078,3684.3,3684.2,0.188]
[1754339290040,20.4668,3684.3,3684.2,1.3779]
[1754339290441,1.7078,3684.3,3684.2,1.3779]
[1754339290846,20.4658,3684.3,3684.2,1.3779]
[1754339291736,0.1997,3683.7,3683.6,3.2078]
[1754339291936,1.7078,3683.7,3683.6,1.20396]
[1754339292139,1.7078,3683.7,3683.6,1.63876]
[1754339292334,1.7078,3683.7,3683.2,3.5024]
[1754339292635,2.25079,3683.5,3683.4,1.0171]
[1754339292839,2.25079,3683.5,3683.4,1.6388]
[1754339293036,1.7078,3683.5,3683.4,1.6388]
[1754339293235,1.7078,3683.5,3683.4,1.9209]
[1754339293539,1.7078,3683.5,3683.4,2.2155]
[1754339293736,1.7078,3683.5,3683.4,1.9209]
[1754339295848,1.7078,3683.5,3683.4,2.2155]
[1754339296050,1.7078,3683.5,3683.4,1.9209]